bitfinex/quotes_SOLUSD_20241103
["timestamp","ask_amount","ask_price","bid_price","bid_amount"]
[1730635393206,42.242374,163.93,163.83,2.89185285]
[1730635394199,0.12549,163.91,163.8,20.0]
[1730635394399,0.12549,163.91,163.82,0.1]
[1730635394607,0.12549,163.91,163.8,20.0]
[1730635395404,0.37647,163.89,163.79,21.43198049]
[1730635395721,24.4852,163.9,163.79,21.43198049]
[1730635395722,23.776884,163.87,163.79,21.43198049]
[1730635395908,23.776884,163.85,163.79,6.47208049]
[1730635396095,23.776884,163.85,163.75,16.1093]
[1730635396294,23.776884,163.85,163.76,6.47021691]
[1730635396494,42.242374,163.86,163.76,6.37021691]
[1730635396699,42.242374,163.86,163.76,6.47021691]
[1730635396919,42.242374,163.86,163.76,6.37021691]
[1730635397326,42.242374,163.86,163.77,0.1]
[1730635397815,23.776884,163.86,163.78,0.1]
[1730635398004,6.1452,163.9,163.8,0.1]
[1730635398199,23.776884,163.89,163.8,0.1]
[1730635398409,0.12549,163.86,163.77,0.1]
[1730635398912,23.776884,163.85,163.77,0.1]
[1730635399125,18.34,163.85,163.77,0.1]
[1730635399301,23.776884,163.84,163.77,0.1]
[1730635401810,23.776884,163.84,163.78,0.1]
[1730635402211,18.34,163.89,163.79,0.1]
[1730635402828,0.12549,163.88,163.79,0.1]
[1730635403701,23.902374,163.88,163.79,0.1]
[1730635403924,42.242374,163.88,163.76,6.37021691]
[1730635404444,42.242374,163.88,163.76,6.57021691]
[1730635404803,42.242374,163.88,163.78,0.1]
[1730635405003,42.242374,163.88,163.77,0.1]
[1730635408013,42.242374,163.88,163.76,26.59407361]
[1730635408213,42.242374,163.88,163.77,0.1]
[1730635408620,42.242374,163.88,163.76,26.59407361]
[1730635408820,42.242374,163.88,163.77,0.1]
[1730635409218,42.242374,163.88,163.76,26.59407361]
[1730635409219,42.242374,163.88,163.78,0.1]
[1730635409614,24.4852,163.9,163.79,0.1]
[1730635410630,0.12549,163.89,163.78,0.1]
[1730635410834,0.12549,163.84,163.76,6.36858361]
[1730635411216,0.12549,163.84,163.76,6.46858361]
[1730635411416,0.12549,163.84,163.76,6.36858361]
[1730635411822,0.12549,163.84,163.76,6.46858361]
[1730635413616,0.12549,163.84,163.76,6.36858361]
[1730635414534,0.12549,163.84,163.76,6.46858361]
[1730635415124,23.776884,163.85,163.76,6.46858361]
[1730635416324,18.34,163.87,163.76,6.46858361]
[1730635416532,23.902374,163.86,163.76,6.46858361]
[1730635417440,42.242374,163.87,163.76,6.46858361]
[1730635419719,42.242374,163.87,163.76,6.36858361]
[1730635421420,23.776884,163.84,163.76,6.36858361]
[1730635423225,0.12549,163.83,163.76,6.36858361]
[1730635433454,0.37647,163.83,163.72,0.2986027]
[1730635435851,18.34,163.84,163.75,0.1]
[1730635437038,0.12549,163.83,163.72,20.4986027]
[1730635437233,23.902374,163.83,163.72,20.4986027]
[1730635439243,23.902374,163.83,163.73,0.1]
[1730635440253,23.902374,163.83,163.72,20.4986027]
[1730635440444,42.242374,163.83,163.72,20.3986027]
[1730635440652,42.242374,163.83,163.72,20.2986027]
[1730635440948,18.46549,163.79,163.72,0.2986027]
[1730635441152,42.116884,163.78,163.72,0.2986027]
[1730635441738,23.776884,163.79,163.72,0.2986027]
[1730635442452,23.776884,163.79,163.72,0.3986027]
[1730635443046,23.776884,163.79,163.72,0.2986027]
[1730635445848,0.12549,163.79,163.72,0.2986027]
[1730635450772,42.242374,163.78,163.72,0.2986027]
[1730635450970,0.12549,163.77,163.72,0.2986027]
[1730635451267,23.902374,163.78,163.72,0.2986027]
[1730635452768,0.12549,163.77,163.72,0.2986027]
[1730635454644,0.37647,163.77,163.72,0.2986027]
[1730635454850,24.153354,163.75,163.72,0.2986027]
[1730635455153,48.685454,163.73,163.72,0.2986027]
[1730635455356,48.785454,163.73,163.72,0.2986027]
[1730635456052,42.493354,163.69,163.59,23.2323]
[1730635456376,42.493354,163.69,163.59,22.96424228]
[1730635457244,18.59098,163.65,163.59,6.37254228]
[1730635457446,42.493354,163.65,163.56,0.2986027]
[1730635457651,42.493354,163.65,163.56,6.66815327]
[1730635458548,42.493354,163.65,163.56,0.2986027]
[1730635460155,24.153354,163.65,163.56,0.2986027]
[1730635464162,23.776884,163.65,163.56,0.2986027]
[1730635464859,70.25098,163.67,163.56,0.2986027]
[1730635465059,0.37647,163.65,163.56,0.2986027]
[1730635466254,112.593354,163.65,163.56,0.2986027]
[1730635470358,112.493354,163.65,163.56,0.2986027]
[1730635470580,112.593354,163.65,163.56,0.2986027]
[1730635472972,139.194554,163.65,163.56,0.2986027]
[1730635473180,119.194554,163.65,163.56,0.2986027]
[1730635475580,119.294554,163.65,163.56,0.2986027]
[1730635479169,119.194554,163.65,163.56,0.2986027]
[1730635479494,119.294554,163.65,163.56,0.2986027]
[1730635480759,119.194554,163.65,163.56,0.2986027]
[1730635480964,112.593354,163.65,163.56,0.2986027]
[1730635481359,112.493354,163.65,163.56,0.2986027]
[1730635481779,112.242374,163.65,163.56,16.9437027]
[1730635481954,112.242374,163.65,163.57,6.0498]
[1730635481955,18.34,163.65,163.57,6.0498]
[1730635482283,18.34,163.66,163.57,6.0498]
[1730635482463,70.0,163.67,163.57,6.0498]
[1730635482464,18.34,163.67,163.57,6.0498]
[1730635482882,0.12549,163.66,163.57,6.0498]
[1730635483266,18.34,163.67,163.57,6.0498]
[1730635483779,0.12549,163.66,163.57,6.0498]
[1730635484766,0.12549,163.65,163.57,6.0498]
[1730635486082,24.027864,163.66,163.57,6.0498]
[1730635486083,23.902374,163.66,163.57,6.0498]
[1730635486266,0.25098,163.67,163.57,6.0498]
[1730635486580,0.25098,163.67,163.62,16.6451]
[1730635486782,0.12549,163.66,163.62,16.6451]
[1730635489074,0.12549,163.66,163.58,16.6451]
[1730635489474,70.37647,163.65,163.58,16.6451]
[1730635489770,112.493354,163.65,163.58,16.6451]
[1730635492498,42.493354,163.65,163.58,16.6451]
[1730635493183,24.153354,163.65,163.58,16.6451]
[1730635504300,13.51173126,163.72,163.58,16.6451]
[1730635504606,0.12549,163.73,163.64,16.6515027]
[1730635505188,18.46549,163.73,163.64,16.6515027]
[1730635505583,18.34,163.73,163.64,16.6515027]
[1730635506000,0.1,163.75,163.64,16.6515027]
[1730635506001,18.34,163.75,163.64,16.6515027]
[1730635506210,6.2155,163.77,163.66,0.1]
[1730635506211,18.34,163.77,163.66,0.1]
[1730635506397,32.96823126,163.8,163.66,0.1]
[1730635506398,86.85173126,163.8,163.66,0.1]
[1730635506596,73.34,163.8,163.66,0.1]
[1730635506907,0.12549,163.79,163.66,0.1]
[1730635507203,18.34,163.77,163.65,20.0]
[1730635507410,88.34,163.75,163.64,16.6515027]
[1730635507614,88.44,163.75,163.64,16.6515027]
[1730635507786,24.153354,163.72,163.64,16.6515027]
[1730635508805,0.37647,163.72,163.64,16.6515027]
[1730635514794,23.776884,163.73,163.64,16.6515027]
[1730635515005,18.35,163.76,163.64,16.6515027]
[1730635515715,0.12549,163.75,163.64,16.6515027]
[1730635516214,23.902374,163.75,163.64,16.6515027]
[1730635516390,18.35,163.74,163.64,16.6515027]
[1730635516713,23.776884,163.73,163.64,16.6515027]
[1730635518714,23.776884,163.74,163.64,16.7515027]
[1730635519406,23.776884,163.74,163.65,0.22549]
[1730635519711,23.776884,163.74,163.65,20.32549]
[1730635521199,23.776884,163.74,163.65,20.22549]
[1730635526509,23.776884,163.74,163.64,16.6515027]
[1730635526718,42.252374,163.75,163.64,16.6515027]
[1730635526903,0.25098,163.73,163.64,16.6515027]
[1730635528997,42.126884,163.75,163.64,16.6515027]
[1730635529209,0.12549,163.74,163.64,16.6515027]
[1730635529411,0.25098,163.74,163.64,16.6515027]
[1730635534115,0.12549,163.73,163.64,16.6515027]
[1730635536905,0.12549,163.69,163.64,0.2986027]
[1730635543430,0.12549,163.65,163.64,0.2986027]
[1730635546429,34.07817,163.65,163.64,0.2986027]
[1730635546613,57.855054,163.65,163.64,0.2986027]
[1730635547126,62.35102928,163.65,163.64,0.2986027]
[1730635547832,82.45102928,163.65,163.64,0.2986027]
[1730635548016,62.35102928,163.65,163.64,0.2986027]
[1730635548333,62.45102928,163.65,163.64,0.2986027]
[1730635549121,66.05534041,163.65,163.64,0.2986027]
[1730635551308,65.96126289,163.65,163.64,0.2986027]
[1730635551537,66.06126289,163.65,163.64,0.2986027]
[1730635551718,61.55936513,163.65,163.64,0.2986027]
[1730635551914,66.0608829,163.65,163.64,0.2986027]
[1730635552113,66.06215267,163.65,163.64,0.2986027]
[1730635552824,65.96215267,163.65,163.64,0.2986027]
[1730635553135,66.06215267,163.65,163.64,0.2986027]
[1730635556040,65.96215267,163.65,163.64,0.2986027]
[1730635556242,66.06215267,163.65,163.64,0.2986027]
[1730635558445,66.04979178,163.65,163.64,0.2986027]
[1730635558616,65.84979178,163.65,163.64,0.2986027]
[1730635558820,50.59809178,163.65,163.64,0.2986027]
[1730635559039,47.00137648,163.65,163.64,0.2986027]
[1730635559252,50.59910761,163.65,163.64,0.2986027]
[1730635561138,46.10108513,163.65,163.64,0.2986027]
[1730635561321,50.60126556,163.65,163.64,0.2986027]
[1730635561515,46.10111934,163.65,163.64,0.2986027]
[1730635561728,50.60161072,163.65,163.64,0.2986027]
[1730635561928,26.44825672,163.65,163.64,0.2986027]
[1730635562221,4.50057353,163.65,163.64,0.2986027]
[1730635562429,70.0,163.72,163.64,0.2986027]
[1730635562626,0.12549,163.7,163.64,0.2986027]
[1730635562829,8.10174238,163.69,163.64,0.2986027]
[1730635563039,8.10174238,163.68,163.64,0.2986027]
[1730635563228,4.50265427,163.67,163.64,0.2986027]
[1730635563432,4.50265427,163.66,163.64,0.2986027]
[1730635563634,23.776884,163.69,163.64,0.2986027]
[1730635563836,8.10167286,163.68,163.64,0.2986027]
[1730635564144,4.5026795,163.67,163.64,0.2986027]
[1730635564345,4.50276681,163.66,163.64,0.2986027]
[1730635564531,18.35,163.71,163.64,0.2986027]
[1730635564734,26.45254886,163.7,163.64,0.2986027]
[1730635564934,8.10254886,163.69,163.64,0.2986027]
[1730635565132,8.10254886,163.68,163.64,0.2986027]
[1730635565347,4.50318154,163.67,163.64,0.2986027]
[1730635565646,18.35,163.72,163.64,0.2986027]
[1730635565947,8.10232262,163.71,163.64,0.2986027]
[1730635566130,8.10232262,163.7,163.64,0.2986027]
[1730635566331,8.10232262,163.69,163.64,0.2986027]
[1730635566536,8.10232262,163.68,163.64,0.2986027]
[1730635566744,18.35,163.74,163.64,0.2986027]
[1730635566948,8.22896606,163.73,163.64,0.2986027]
[1730635567150,8.10347606,163.72,163.64,0.2986027]
[1730635567345,8.10347606,163.71,163.64,0.2986027]
[1730635567535,8.10347606,163.7,163.64,0.2986027]
[1730635567846,8.1048472,163.69,163.64,0.2986027]
[1730635568029,4.50373678,163.69,163.64,0.2986027]
[1730635568224,4.50373678,163.68,163.64,0.2986027]
[1730635568441,42.126884,163.72,163.64,0.2986027]
[1730635568643,23.776884,163.7,163.64,0.2986027]
[1730635568837,8.10607375,163.69,163.64,0.2986027]
[1730635569037,8.10607375,163.68,163.64,0.2986027]
[1730635569237,4.50411697,163.67,163.64,0.2986027]
[1730635569442,23.776884,163.71,163.64,0.2986027]
[1730635569732,8.10726599,163.7,163.64,0.2986027]
[1730635569941,8.10726599,163.69,163.64,0.2986027]
[1730635570142,23.776884,163.71,163.64,0.2986027]
[1730635570345,8.10772833,163.7,163.64,0.2986027]
[1730635570632,23.776884,163.71,163.64,0.2986027]
[1730635570633,8.10772833,163.69,163.64,0.2986027]
[1730635570847,23.776884,163.71,163.64,0.2986027]
[1730635571147,8.10788286,163.7,163.64,0.2986027]
[1730635571450,8.10757335,163.69,163.64,0.2986027]
[1730635571670,23.776884,163.71,163.64,0.2986027]
[1730635571963,8.10896284,163.7,163.64,0.2986027]
[1730635572131,8.10896284,163.69,163.64,0.2986027]
[1730635572328,18.35,163.78,163.64,0.3986027]
[1730635572526,0.12549,163.75,163.64,0.3986027]
[1730635572757,26.4616369,163.74,163.64,0.2986027]
[1730635572958,8.1116369,163.73,163.64,0.2986027]
[1730635573257,8.1116369,163.72,163.64,0.2986027]
[1730635573427,8.1116369,163.71,163.64,0.2986027]
[1730635573632,4.50611162,163.7,163.64,0.2986027]
[1730635573853,23.776884,163.73,163.64,0.2986027]
[1730635574056,8.11120803,163.72,163.64,0.2986027]
[1730635574248,8.11120803,163.71,163.64,0.2986027]
[1730635574448,23.776884,163.73,163.64,0.2986027]
[1730635574767,8.1109583,163.72,163.64,0.2986027]
[1730635575055,8.1109583,163.71,163.64,0.2986027]
[1730635575243,4.50571179,163.7,163.64,0.2986027]
[1730635575550,0.37647,163.72,163.64,0.2986027]
[1730635575753,23.776884,163.7,163.64,0.2986027]
[1730635576857,18.35,163.74,163.64,0.2986027]
[1730635577155,31.89143708,163.73,163.64,0.2986027]
[1730635577349,8.11455308,163.72,163.64,0.2986027]
[1730635577550,8.11455308,163.71,163.64,0.2986027]
[1730635577749,4.50750829,163.7,163.64,0.2986027]
[1730635577946,23.776884,163.73,163.64,0.2986027]
[1730635578157,3.60732267,163.72,163.64,0.2986027]
[1730635578461,4.50756782,163.71,163.64,0.2986027]
[1730635578756,4.50756782,163.7,163.64,0.2986027]
[1730635578950,23.776884,163.73,163.64,0.2986027]
[1730635579136,8.11476916,163.72,163.64,0.2986027]
[1730635579338,8.11476916,163.71,163.64,0.2986027]
[1730635579545,4.5074236,163.7,163.64,0.2986027]
[1730635579750,23.776884,163.73,163.64,0.2986027]
[1730635579940,8.11463006,163.72,163.64,0.2986027]
[1730635580140,8.11463006,163.71,163.64,0.2986027]
[1730635580341,4.50733212,163.7,163.64,0.2986027]
[1730635580641,23.776884,163.73,163.64,0.2986027]
[1730635580851,8.11334547,163.72,163.64,0.2986027]
[1730635581042,8.11334547,163.71,163.64,0.2986027]
[1730635581354,24.153354,163.78,163.65,0.12549]
[1730635581536,26.46408707,163.77,163.66,22.3938]
[1730635581858,8.11405972,163.76,163.67,20.32549]
[1730635582085,3.24,163.8,163.69,0.35098]
[1730635582244,8.1149694,163.79,163.71,6.3306]
[1730635582445,8.1149694,163.78,163.71,6.3306]
[1730635582639,8.1149694,163.77,163.71,6.3306]
[1730635582841,8.1149694,163.76,163.71,6.3306]
[1730635583048,8.1149694,163.75,163.71,6.3306]
[1730635583243,0.12549,163.81,163.71,6.3306]
[1730635583545,8.11061937,163.8,163.71,6.3306]
[1730635583742,8.11061937,163.79,163.71,6.3306]
[1730635583943,8.11061937,163.78,163.71,6.3306]
[1730635584145,8.11052081,163.77,163.71,6.3306]
[1730635584361,42.377864,163.81,163.71,6.3306]
[1730635584573,23.776884,163.79,163.71,6.3306]
[1730635584739,8.10739833,163.78,163.71,6.3306]
[1730635584948,4.5053053,163.77,163.71,6.3306]
[1730635585136,23.776884,163.8,163.71,6.3306]
[1730635585558,4.50437663,163.79,163.71,6.3306]
[1730635585762,3.60055986,163.79,163.72,0.12549]
[1730635585966,23.776884,163.82,163.72,0.12549]
[1730635586266,8.10518981,163.81,163.72,20.37647]
[1730635586443,4.50451837,163.8,163.72,20.57647]
[1730635586643,23.776884,163.83,163.72,20.57647]
[1730635586964,8.10116084,163.82,163.72,20.47647]
[1730635587259,4.50248685,163.81,163.72,20.47647]
[1730635587452,18.35,163.84,163.72,20.47647]
[1730635587651,8.09756844,163.83,163.72,20.47647]
[1730635587847,8.09756844,163.82,163.72,20.57647]
[1730635588057,4.50055657,163.81,163.72,20.47647]
[1730635588265,23.776884,163.83,163.72,20.47647]
[1730635588460,8.0941292,163.82,163.72,20.47647]
[1730635588775,4.49863038,163.81,163.72,20.57647]
[1730635588970,23.776884,163.83,163.72,20.57647]
[1730635589146,4.4997549,163.82,163.72,20.57647]
[1730635589347,4.4997549,163.81,163.72,20.57647]
[1730635589548,42.252374,163.84,163.72,20.47647]
[1730635589749,23.776884,163.82,163.72,20.47647]
[1730635589942,4.4980631,163.81,163.72,20.47647]
[1730635590165,23.776884,163.83,163.72,20.47647]
[1730635590364,4.49751547,163.82,163.72,20.47647]
[1730635590660,4.49751547,163.81,163.72,20.37647]
[1730635590863,23.776884,163.83,163.72,20.37647]
[1730635591056,8.08954774,163.82,163.72,20.37647]
[1730635591368,23.776884,163.83,163.72,20.47647]
[1730635591667,4.49420456,163.82,163.72,20.47647]
[1730635591866,4.49420456,163.81,163.72,20.37647]
[1730635592168,23.776884,163.83,163.72,20.37647]
[1730635592366,0.12549,163.84,163.72,20.37647]
[1730635592367,8.08266761,163.82,163.72,20.47647]
[1730635592549,4.49217752,163.81,163.72,20.47647]
[1730635592751,42.252374,163.84,163.72,20.47647]
[1730635593151,23.776884,163.82,163.72,20.47647]
[1730635593655,4.49191258,163.81,163.72,20.47647]
[1730635594060,23.776884,163.82,163.72,20.47647]
[1730635594366,23.776884,163.8,163.71,6.3306]
[1730635594778,23.776884,163.81,163.71,6.3306]
[1730635594951,4.48962717,163.8,163.71,6.3306]
[1730635595271,23.776884,163.81,163.71,6.3306]
[1730635595471,4.48920948,163.8,163.71,6.3306]
[1730635595650,23.776884,163.81,163.71,6.3306]
[1730635595851,4.48928445,163.8,163.71,6.3306]
[1730635596046,23.776884,163.81,163.71,6.3306]
[1730635596252,4.48910307,163.8,163.71,6.3306]
[1730635598670,23.776884,163.81,163.71,6.3306]
[1730635602150,4.48563983,163.8,163.71,6.3306]
[1730635602357,23.776884,163.81,163.71,6.3306]
[1730635603755,4.48495594,163.8,163.71,6.3306]
[1730635604058,23.776884,163.81,163.71,6.3306]
[1730635604259,4.48500431,163.8,163.71,6.3306]
[1730635604463,23.776884,163.81,163.71,6.3306]
[1730635604979,4.48497008,163.8,163.71,6.3306]
[1730635607777,23.776884,163.81,163.71,6.3306]
[1730635607966,4.48486014,163.8,163.71,6.3306]
[1730635608161,23.776884,163.81,163.71,6.3306]
[1730635608757,4.48517609,163.8,163.71,6.3306]
[1730635608980,23.776884,163.81,163.71,6.3306]
[1730635610077,23.276884,163.81,163.71,6.3306]
[1730635610975,23.276884,163.81,163.72,0.12549]
[1730635611463,0.25098,163.83,163.72,20.12549]
[1730635613263,0.25098,163.83,163.71,6.3306]
[1730635614377,0.25098,163.83,163.72,0.12549]
[1730635615674,0.25098,163.83,163.71,6.3306]
[1730635622985,0.12549,163.83,163.72,0.12549]
[1730635623197,42.126884,163.84,163.72,20.47647]
[1730635623404,23.776884,163.84,163.74,0.12549]
[1730635623901,23.776884,163.84,163.73,0.37647]
[1730635624187,23.776884,163.84,163.73,0.12549]
[1730635624490,23.776884,163.84,163.73,0.22549]
[1730635625266,0.12549,163.83,163.72,20.25098]
[1730635625483,0.25098,163.83,163.71,6.3306]
[1730635625684,0.25098,163.83,163.72,0.12549]
[1730635628276,42.252374,163.79,163.7,22.4294633]
[1730635628481,0.12549,163.78,163.7,6.3662633]
[1730635629989,0.12549,163.77,163.7,6.3662633]
[1730635630200,0.12549,163.77,163.66,6.6475]
[1730635630583,0.12549,163.77,163.67,6.3474794]
[1730635640202,0.37647,163.78,163.67,6.3474794]
[1730635648246,0.47647,163.78,163.67,6.3474794]
[1730635650232,0.37647,163.78,163.67,6.3474794]
[1730635650528,0.47647,163.78,163.67,6.3474794]
[1730635652442,0.37647,163.78,163.67,6.3474794]
[1730635652657,0.47647,163.78,163.67,6.3474794]
[1730635653249,3.61936858,163.77,163.67,6.3474794]
[1730635653464,46.12272258,163.76,163.67,6.3474794]
[1730635653676,24.153354,163.74,163.67,6.3474794]
[1730635653830,23.776884,163.72,163.67,6.3474794]
[1730635654338,3.61914606,163.71,163.67,6.3474794]
[1730635654542,24.153354,163.74,163.67,6.3474794]
[1730635654857,23.776884,163.72,163.67,6.3474794]
[1730635655036,3.61898231,163.71,163.67,6.3474794]
[1730635655236,3.61898231,163.7,163.67,6.3474794]
[1730635655446,23.776884,163.72,163.67,6.3474794]
[1730635655755,3.61938295,163.71,163.67,6.3474794]
[1730635655959,3.61938295,163.7,163.67,6.3474794]
[1730635656149,23.776884,163.72,163.67,6.3474794]
[1730635656338,23.776884,163.7,163.67,6.3474794]
[1730635657175,23.776884,163.68,163.64,0.2986027]
[1730635657655,3.61909646,163.67,163.64,0.2986027]
[1730635657830,23.776884,163.68,163.64,0.2986027]
[1730635658023,3.61923958,163.67,163.64,0.2986027]
[1730635658230,23.776884,163.68,163.64,0.2986027]
[1730635658231,3.61923958,163.66,163.64,0.2986027]
[1730635658451,23.776884,163.68,163.64,0.2986027]
[1730635658641,3.61986214,163.67,163.64,0.2986027]
[1730635658841,3.61986214,163.66,163.64,0.2986027]
[1730635659149,3.99567998,163.65,163.64,0.2986027]
[1730635659337,27.77256398,163.65,163.64,0.2986027]
[1730635659659,27.39609398,163.65,163.64,0.2986027]
[1730635660028,3.61920998,163.65,163.64,0.2986027]
[1730635661154,3.62059207,163.65,163.64,0.2986027]
[1730635662530,42.503354,163.71,163.64,0.2986027]
[1730635662734,23.776884,163.69,163.64,0.2986027]
[1730635662934,3.62206725,163.68,163.64,0.2986027]
[1730635663224,3.62206725,163.67,163.64,0.2986027]
[1730635663412,3.6182509,163.66,163.64,0.2986027]
[1730635663731,23.776884,163.69,163.64,0.2986027]
[1730635663908,3.61825541,163.68,163.64,0.2986027]
[1730635664229,3.61825541,163.67,163.64,0.2986027]
[1730635664533,23.776884,163.69,163.64,0.2986027]
[1730635665002,3.61630265,163.68,163.64,0.2986027]
[1730635665205,3.61630265,163.67,163.64,0.2986027]
[1730635665406,23.776884,163.69,163.64,0.2986027]
[1730635665712,3.61476461,163.68,163.64,0.2986027]
[1730635666019,3.61476461,163.67,163.64,0.2986027]
[1730635666210,23.776884,163.69,163.64,0.2986027]
[1730635666410,3.61346892,163.68,163.64,0.2986027]
[1730635666629,3.61346892,163.67,163.64,0.2986027]
[1730635666826,23.776884,163.69,163.64,0.2986027]
[1730635667018,3.61347112,163.68,163.64,0.2986027]
[1730635667337,3.61347112,163.67,163.64,0.2986027]
[1730635667563,23.776884,163.69,163.64,0.2986027]
[1730635667743,3.61434394,163.68,163.64,0.2986027]
[1730635668043,3.61434394,163.67,163.64,0.2986027]
[1730635668455,23.776884,163.69,163.64,0.2986027]
[1730635668958,3.61404351,163.68,163.64,0.2986027]
[1730635669449,23.776884,163.69,163.64,0.2986027]
[1730635670551,4.50963564,163.68,163.64,0.2986027]
[1730635671540,3.61446867,163.67,163.64,0.2986027]
[1730635671737,23.776884,163.69,163.64,0.2986027]
[1730635671954,3.61439156,163.68,163.64,0.2986027]
[1730635672135,3.61439156,163.67,163.64,0.2986027]
[1730635672431,23.776884,163.69,163.64,0.2986027]
[1730635672635,3.61378382,163.68,163.64,0.2986027]
[1730635672831,3.61378382,163.67,163.64,0.2986027]
[1730635673055,23.776884,163.69,163.64,0.2986027]
[1730635673353,8.12453442,163.68,163.64,0.2986027]
[1730635673533,3.61343666,163.67,163.64,0.2986027]
[1730635673724,23.776884,163.69,163.64,0.2986027]
[1730635674034,3.61321429,163.68,163.64,0.2986027]
[1730635674340,3.61321429,163.67,163.64,0.2986027]
[1730635674542,23.776884,163.69,163.64,0.2986027]
[1730635674827,3.61300329,163.68,163.64,0.2986027]
[1730635675031,23.776884,163.69,163.64,0.2986027]
[1730635675032,3.61300329,163.67,163.64,0.2986027]
[1730635675232,23.776884,163.69,163.64,0.2986027]
[1730635675412,3.61284964,163.68,163.64,0.2986027]
[1730635675611,23.776884,163.69,163.64,0.2986027]
[1730635675612,3.61284964,163.67,163.64,0.2986027]
[1730635675916,23.776884,163.69,163.64,0.2986027]
[1730635676118,3.6128643,163.68,163.64,0.2986027]
[1730635676319,3.6128643,163.67,163.64,0.2986027]
[1730635676540,23.776884,163.69,163.64,0.2986027]
[1730635676833,3.61276624,163.68,163.64,0.2986027]
[1730635677037,3.61276624,163.67,163.64,0.2986027]
[1730635677243,23.776884,163.69,163.64,0.2986027]
[1730635677533,3.61261531,163.68,163.64,0.2986027]
[1730635677738,3.61261531,163.67,163.64,0.2986027]
[1730635678039,23.776884,163.69,163.64,0.2986027]
[1730635678241,3.61259326,163.68,163.64,0.2986027]
[1730635678429,3.61259326,163.67,163.64,0.2986027]
[1730635678625,23.776884,163.69,163.64,0.2986027]
[1730635679024,3.61266901,163.68,163.64,0.2986027]
[1730635679324,23.776884,163.69,163.64,0.2986027]
[1730635679525,3.61284489,163.68,163.64,0.2986027]
[1730635679825,23.776884,163.69,163.64,0.2986027]
[1730635680142,3.61293174,163.68,163.64,0.2986027]
[1730635680325,23.776884,163.69,163.64,0.2986027]
[1730635680524,3.61259255,163.68,163.64,0.2986027]
[1730635680739,23.776884,163.69,163.64,0.2986027]
[1730635680926,3.6125203,163.68,163.64,0.2986027]
[1730635681127,23.776884,163.69,163.64,0.2986027]
[1730635681337,3.61197659,163.68,163.64,0.2986027]
[1730635681644,3.61206824,163.67,163.64,0.2986027]
[1730635681936,23.776884,163.69,163.64,0.2986027]
[1730635682150,3.61201622,163.68,163.64,0.2986027]
[1730635682325,3.61201622,163.67,163.64,0.2986027]
[1730635682531,23.776884,163.69,163.64,0.2986027]
[1730635682730,3.61215561,163.68,163.64,0.2986027]
[1730635683041,3.61215561,163.67,163.64,0.2986027]
[1730635683241,23.776884,163.69,163.64,0.2986027]
[1730635683437,3.61258237,163.68,163.64,0.2986027]
[1730635683745,3.61258237,163.67,163.64,0.2986027]
[1730635684047,23.776884,163.69,163.64,0.2986027]
[1730635684245,3.61321278,163.68,163.64,0.2986027]
[1730635684446,3.61321278,163.67,163.64,0.2986027]
[1730635684644,3.61321278,163.66,163.64,0.2986027]
[1730635684840,23.776884,163.69,163.64,0.2986027]
[1730635685046,3.6131831,163.68,163.64,0.2986027]
[1730635685237,3.6131831,163.67,163.64,0.2986027]
[1730635685540,18.35,163.72,163.64,0.2986027]
[1730635685725,3.61450848,163.71,163.64,16.4017027]
[1730635685921,3.61450848,163.7,163.64,16.4017027]
[1730635686133,15.6807,163.73,163.64,16.4017027]
[1730635686134,3.61450848,163.69,163.64,16.4017027]
[1730635686331,3.61450848,163.68,163.64,16.4017027]
[1730635686528,0.12549,163.72,163.64,16.4017027]
[1730635686849,3.61568941,163.71,163.64,16.4017027]
[1730635687043,3.61568941,163.7,163.64,16.4017027]
[1730635687243,3.61568941,163.69,163.64,16.4017027]
[1730635687427,3.61568941,163.68,163.64,16.4017027]
[1730635687629,3.61568941,163.67,163.64,16.4017027]
[1730635687932,22.4806,163.77,163.64,16.4017027]
[1730635687933,18.35,163.75,163.64,16.4017027]
[1730635688145,3.61731487,163.74,163.64,16.4017027]
[1730635688343,3.61731487,163.73,163.64,16.4017027]
[1730635688648,3.61731487,163.72,163.64,16.4017027]
[1730635688848,3.61731487,163.71,163.64,16.4017027]
[1730635689048,3.61731487,163.7,163.64,16.4017027]
[1730635689233,3.61731487,163.69,163.64,16.4017027]
[1730635689548,24.153354,163.74,163.64,16.4017027]